[Event "Titled Tuesday Blitz May 30 Late 2023"]
[White "Brown, Raehanna"]
[Black "Zaitsev, Alexander"]
[WhiteFideId "7402740"]
[BlackFideId "4164490"]
[WhiteElo "1655"]
[BlackElo "2373"]
[Result "0-1"]
[Round "08"]
[TimeControl "180+2"]
[Date "2023.05.31"]
[WhiteClock "0:00:01"]
[BlackClock "0:00:18"]

1. c4 {[%clk 0:02:58]}  Nf6 {[%clk 0:02:59]} 2. Nc3 {[%clk 0:02:53]}  e6 {[%clk 0:02:59]} 3. e4 {[%clk 0:02:52]}  d5 {[%clk 0:03:00]} 4. e5 {[%clk 0:02:52]}  d4 {[%clk 0:03:00]} 5. exf6 {[%clk 0:02:52]}  dxc3 {[%clk 0:03:00]} 6. bxc3 {[%clk 0:02:53]}  Qxf6 {[%clk 0:03:01]} 7. d4 {[%clk 0:02:54]}  e5 {[%clk 0:03:01]} 8. Nf3 {[%clk 0:02:50]}  Nc6 {[%clk 0:03:01]} 9. Bd3 {[%clk 0:02:46]}  exd4 {[%clk 0:02:40]} 10. O-O {[%clk 0:02:42]}  Be7 {[%clk 0:02:27]} 11. Bg5 {[%clk 0:02:27]}  Qd6 {[%clk 0:02:26]} 12. Re1 {[%clk 0:02:17]}  O-O {[%clk 0:02:20]} 13. Bxe7 {[%clk 0:02:13]}  Nxe7 {[%clk 0:02:21]} 14. cxd4 {[%clk 0:02:12]}  h6 {[%clk 0:01:59]} 15. Qc2 {[%clk 0:02:09]}  c5 {[%clk 0:01:24]} 16. d5 {[%clk 0:01:54]}  Bd7 {[%clk 0:01:23]} 17. a4 {[%clk 0:01:51]}  Rfe8 {[%clk 0:01:22]} 18. a5 {[%clk 0:01:37]}  Rad8 {[%clk 0:01:00]} 19. Rab1 {[%clk 0:01:28]}  b6 {[%clk 0:01:01]} 20. axb6 {[%clk 0:01:28]}  axb6 {[%clk 0:01:02]} 21. Ne5 {[%clk 0:01:27]}  Nc8 {[%clk 0:00:58]} 22. Nxd7 {[%clk 0:01:00]}  Qxd7 {[%clk 0:00:57]} 23. Bf5 {[%clk 0:00:57]}  Qd6 {[%clk 0:00:51]} 24. Rxe8+ {[%clk 0:00:39]}  Rxe8 {[%clk 0:00:51]} 25. Qb2 {[%clk 0:00:39]}  Ne7 {[%clk 0:00:49]} 26. Bd3 {[%clk 0:00:36]}  Rb8 {[%clk 0:00:49]} 27. Re1 {[%clk 0:00:35]}  Kf8 {[%clk 0:00:47]} 28. g3 {[%clk 0:00:33]}  Re8 {[%clk 0:00:44]} 29. Qb5 {[%clk 0:00:31]}  Rb8 {[%clk 0:00:42]} 30. Kg2 {[%clk 0:00:30]}  g6 {[%clk 0:00:42]} 31. Qb2 {[%clk 0:00:28]}  Kg8 {[%clk 0:00:42]} 32. Qe2 {[%clk 0:00:23]}  Kf8 {[%clk 0:00:41]} 33. Qb2 {[%clk 0:00:22]}  Kg8 {[%clk 0:00:40]} 34. Qe2 {[%clk 0:00:22]}  Rb7 {[%clk 0:00:35]} 35. Qe3 {[%clk 0:00:18]}  Kg7 {[%clk 0:00:32]} 36. Qf3 {[%clk 0:00:17]}  Nc8 {[%clk 0:00:30]} 37. Bc2 {[%clk 0:00:16]}  Re7 {[%clk 0:00:31]} 38. Qc3+ {[%clk 0:00:16]}  Kg8 {[%clk 0:00:30]} 39. Rxe7 {[%clk 0:00:15]}  Qxe7 {[%clk 0:00:31]} 40. Qe3 {[%clk 0:00:13]}  Qxe3 {[%clk 0:00:28]} 41. fxe3 {[%clk 0:00:14]}  Nd6 {[%clk 0:00:28]} 42. Bd3 {[%clk 0:00:14]}  Kg7 {[%clk 0:00:26]} 43. Kf3 {[%clk 0:00:14]}  Kf6 {[%clk 0:00:27]} 44. h4 {[%clk 0:00:11]}  Ke5 {[%clk 0:00:27]} 45. g4 {[%clk 0:00:12]}  g5 {[%clk 0:00:24]} 46. hxg5 {[%clk 0:00:10]}  hxg5 {[%clk 0:00:25]} 47. Be2 {[%clk 0:00:10]}  Ne4 {[%clk 0:00:25]} 48. Bd3 {[%clk 0:00:10]}  Nd2+ {[%clk 0:00:23]} 49. Ke2 {[%clk 0:00:10]}  Nb3 {[%clk 0:00:23]} 50. Kf3 {[%clk 0:00:10]}  Na5 {[%clk 0:00:23]} 51. Ke2 {[%clk 0:00:10]}  Nb7 {[%clk 0:00:23]} 52. Kf3 {[%clk 0:00:10]}  Nd6 {[%clk 0:00:24]} 53. Ke2 {[%clk 0:00:10]}  Ne8 {[%clk 0:00:18]} 54. Kf3 {[%clk 0:00:10]}  Nf6 {[%clk 0:00:18]} 55. Kg3 {[%clk 0:00:09]}  Ne8 {[%clk 0:00:15]} 56. Kf3 {[%clk 0:00:09]}  f6 {[%clk 0:00:16]} 57. Kg3 {[%clk 0:00:09]}  Nd6 {[%clk 0:00:16]} 58. Kf3 {[%clk 0:00:09]}  Nf7 {[%clk 0:00:17]} 59. Kg3 {[%clk 0:00:09]}  Kd6 {[%clk 0:00:17]} 60. Be2 {[%clk 0:00:09]}  Ne5 {[%clk 0:00:17]} 61. Bf1 {[%clk 0:00:08]}  Kc7 {[%clk 0:00:17]} 62. Be2 {[%clk 0:00:08]}  Kb7 {[%clk 0:00:18]} 63. e4 {[%clk 0:00:07]}  Ka7 {[%clk 0:00:18]} 64. Kf2 {[%clk 0:00:07]}  Ka6 {[%clk 0:00:19]} 65. Ke3 {[%clk 0:00:07]}  Ka5 {[%clk 0:00:20]} 66. Kd2 {[%clk 0:00:08]}  Kb4 {[%clk 0:00:20]} 67. Ke3 {[%clk 0:00:07]}  Kc3 {[%clk 0:00:20]} 68. Kf2 {[%clk 0:00:06]}  Kd4 {[%clk 0:00:19]} 69. Bf3 {[%clk 0:00:04]}  Kxc4 {[%clk 0:00:20]} 70. Ke3 {[%clk 0:00:02]}  b5 {[%clk 0:00:18]} 71. Be2+ {[%clk 0:00:03]}  Kb4 {[%clk 0:00:19]} 72. Bd3 {[%clk 0:00:02]}  c4 {[%clk 0:00:19]} 73. Be2 {[%clk 0:00:02]}  Kc5 {[%clk 0:00:19]} 74. Kd2 {[%clk 0:00:02]}  Kd4 {[%clk 0:00:19]} 75. d6 {[%clk 0:00:02]}  Kc5 {[%clk 0:00:18]} 76. d7 {[%clk 0:00:01]}  Nxd7 {[%clk 0:00:18]} 0-1


[Site "https://www.chess.com"]

[Event "Titled Tuesday Blitz May 30 Late 2023"]
[White "rionelG"]
[Black "Shapiro, Viktor"]
[BlackFideId "4175700"]
[WhiteElo "2194"]
[BlackElo "2152"]
[Result "0-1"]
[Round "08"]
[TimeControl "180+2"]
[Date "2023.05.31"]
[WhiteClock "0:00:18"]
[BlackClock "0:01:08"]

1. e4 {[%clk 0:02:57]}  c5 {[%clk 0:02:59]} 2. g3 {[%clk 0:02:57]}  g6 {[%clk 0:02:58]} 3. Bg2 {[%clk 0:02:57]}  Bg7 {[%clk 0:02:58]} 4. Ne2 {[%clk 0:02:57]}  Nc6 {[%clk 0:02:59]} 5. c3 {[%clk 0:02:57]}  e5 {[%clk 0:02:46]} 6. d3 {[%clk 0:02:58]}  Nge7 {[%clk 0:02:45]} 7. Be3 {[%clk 0:02:58]}  d6 {[%clk 0:02:44]} 8. d4 {[%clk 0:02:57]}  b6 {[%clk 0:02:40]} 9. O-O {[%clk 0:02:55]}  O-O {[%clk 0:02:40]} 10. d5 {[%clk 0:02:54]}  Na5 {[%clk 0:02:38]} 11. Na3 {[%clk 0:02:41]}  Ba6 {[%clk 0:02:37]} 12. b3 {[%clk 0:02:39]}  f5 {[%clk 0:02:34]} 13. c4 {[%clk 0:02:33]}  fxe4 {[%clk 0:02:26]} 14. Bxe4 {[%clk 0:02:32]}  Bc8 {[%clk 0:02:26]} 15. Bg5 {[%clk 0:02:14]}  Bf5 {[%clk 0:02:23]} 16. Nc3 {[%clk 0:02:08]}  h6 {[%clk 0:02:22]} 17. Bd2 {[%clk 0:02:02]}  Nb7 {[%clk 0:02:18]} 18. Nc2 {[%clk 0:02:00]}  a6 {[%clk 0:02:17]} 19. Ne3 {[%clk 0:01:59]}  Qd7 {[%clk 0:02:13]} 20. Qc1 {[%clk 0:01:53]}  Kh7 {[%clk 0:02:01]} 21. Qc2 {[%clk 0:01:53]}  b5 {[%clk 0:01:57]} 22. h4 {[%clk 0:01:51]}  b4 {[%clk 0:01:55]} 23. Na4 {[%clk 0:01:44]}  Rae8 {[%clk 0:01:43]} 24. Rae1 {[%clk 0:01:41]}  Bxe4 {[%clk 0:01:41]} 25. Qxe4 {[%clk 0:01:40]}  h5 {[%clk 0:01:37]} 26. Nb2 {[%clk 0:01:34]}  Nf5 {[%clk 0:01:37]} 27. Nxf5 {[%clk 0:01:27]}  gxf5 {[%clk 0:01:36]} 28. Qe2 {[%clk 0:01:24]}  Qf7 {[%clk 0:01:36]} 29. Nd3 {[%clk 0:01:19]}  Qg6 {[%clk 0:01:33]} 30. Kh2 {[%clk 0:01:12]}  Nd8 {[%clk 0:01:33]} 31. Qd1 {[%clk 0:00:34]}  Nf7 {[%clk 0:01:32]} 32. f4 {[%clk 0:00:34]}  e4 {[%clk 0:01:30]} 33. Nc1 {[%clk 0:00:30]}  Nh6 {[%clk 0:01:26]} 34. Be3 {[%clk 0:00:28]}  Ng4+ {[%clk 0:01:25]} 35. Kh3 {[%clk 0:00:27]}  Rg8 {[%clk 0:01:16]} 36. Rg1 {[%clk 0:00:26]}  Bc3 {[%clk 0:01:15]} 37. Re2 {[%clk 0:00:24]}  Nxe3 {[%clk 0:01:14]} 38. Rxe3 {[%clk 0:00:24]}  Bd4 {[%clk 0:01:14]} 39. Qe2 {[%clk 0:00:23]}  Qg4+ {[%clk 0:01:12]} 40. Kh2 {[%clk 0:00:19]}  Qxe2+ {[%clk 0:01:07]} 41. Rxe2 {[%clk 0:00:19]}  Bxg1+ {[%clk 0:01:08]} 42. Kxg1 {[%clk 0:00:19]}  Rxg3+ {[%clk 0:01:08]} 43. Kh2 {[%clk 0:00:18]}  Reg8 {[%clk 0:01:08]} 0-1


[Site "https://www.chess.com"]

[Event "Titled Tuesday Blitz May 30 Late 2023"]
[White "Oliveira, Tiago Batista"]
[Black "Makridis, Dimitrios"]
[WhiteFideId "2108291"]
[BlackFideId "25864475"]
[WhiteElo "1962"]
[BlackElo "2277"]
[Result "0-1"]
[Round "08"]
[TimeControl "180+2"]
[Date "2023.05.31"]
[WhiteClock "0:00:07"]
[BlackClock "0:00:56"]

1. d4 {[%clk 0:03:00]}  Nf6 {[%clk 0:02:47]} 2. c4 {[%clk 0:02:43]}  d5 {[%clk 0:02:45]} 3. Nf3 {[%clk 0:02:40]}  g6 {[%clk 0:02:46]} 4. Nc3 {[%clk 0:02:27]}  Bg7 {[%clk 0:02:45]} 5. cxd5 {[%clk 0:02:26]}  Nxd5 {[%clk 0:02:44]} 6. e4 {[%clk 0:02:25]}  Nxc3 {[%clk 0:02:43]} 7. bxc3 {[%clk 0:02:25]}  O-O {[%clk 0:02:43]} 8. Be3 {[%clk 0:02:24]}  Nd7 {[%clk 0:02:42]} 9. Rc1 {[%clk 0:02:24]}  e5 {[%clk 0:02:42]} 10. Bc4 {[%clk 0:02:14]}  exd4 {[%clk 0:02:39]} 11. cxd4 {[%clk 0:02:12]}  c6 {[%clk 0:02:38]} 12. O-O {[%clk 0:02:10]}  Nf6 {[%clk 0:02:38]} 13. Qc2 {[%clk 0:01:58]}  h6 {[%clk 0:02:33]} 14. Ne5 {[%clk 0:01:51]}  Be6 {[%clk 0:02:00]} 15. Nxg6 {[%clk 0:01:42]}  Re8 {[%clk 0:01:46]} 16. Bxe6 {[%clk 0:00:47]}  Rxe6 {[%clk 0:01:47]} 17. Ne5 {[%clk 0:00:46]}  Nd7 {[%clk 0:01:29]} 18. f4 {[%clk 0:00:41]}  Nxe5 {[%clk 0:01:21]} 19. dxe5 {[%clk 0:00:40]}  Qh4 {[%clk 0:01:20]} 20. g3 {[%clk 0:00:39]}  Qg4 {[%clk 0:01:18]} 21. Rcd1 {[%clk 0:00:32]}  Rae8 {[%clk 0:01:14]} 22. Qb3 {[%clk 0:00:18]}  R6e7 {[%clk 0:01:13]} 23. Bc5 {[%clk 0:00:18]}  Rd7 {[%clk 0:01:04]} 24. Rxd7 {[%clk 0:00:17]}  Qxd7 {[%clk 0:01:05]} 25. Rd1 {[%clk 0:00:17]}  Qg4 {[%clk 0:01:05]} 26. Rd6 {[%clk 0:00:15]}  b6 {[%clk 0:01:05]} 27. Ba3 {[%clk 0:00:15]}  c5 {[%clk 0:01:05]} 28. Bb2 {[%clk 0:00:14]}  Qe2 {[%clk 0:01:03]} 29. e6 {[%clk 0:00:10]}  Qe1+ {[%clk 0:01:02]} 30. Kg2 {[%clk 0:00:10]}  Qxe4+ {[%clk 0:01:03]} 31. Kf1 {[%clk 0:00:08]}  Rxe6 {[%clk 0:00:59]} 32. Rxe6 {[%clk 0:00:08]}  Qxe6 {[%clk 0:00:58]} 33. Qc2 {[%clk 0:00:07]}  Qxa2 {[%clk 0:00:56]} 0-1


[Site "https://www.chess.com"]

[Event "Titled Tuesday Blitz May 30 Late 2023"]
[White "Prieto Aranguren, Alain"]
[Black "Srdanovic, Jovana"]
[WhiteFideId "2268906"]
[BlackFideId "954810"]
[WhiteElo "2209"]
[BlackElo "2169"]
[Result "1-0"]
[Round "08"]
[TimeControl "180+2"]
[Date "2023.05.31"]
[WhiteClock "0:02:24"]
[BlackClock "0:02:21"]

1. e4 {[%clk 0:03:00]}  c6 {[%clk 0:02:59]} 2. d4 {[%clk 0:02:58]}  d5 {[%clk 0:03:00]} 3. exd5 {[%clk 0:02:58]}  cxd5 {[%clk 0:03:00]} 4. Bd3 {[%clk 0:02:59]}  Nc6 {[%clk 0:03:00]} 5. Nf3 {[%clk 0:02:59]}  Bg4 {[%clk 0:02:59]} 6. O-O {[%clk 0:02:58]}  Nxd4 {[%clk 0:02:42]} 7. Nxd4 {[%clk 0:02:54]}  Bxd1 {[%clk 0:02:42]} 8. Bb5+ {[%clk 0:02:54]}  Qd7 {[%clk 0:02:41]} 9. Rxd1 {[%clk 0:02:42]}  e6 {[%clk 0:02:38]} 10. Bxd7+ {[%clk 0:02:41]}  Kxd7 {[%clk 0:02:38]} 11. c4 {[%clk 0:02:41]}  Nf6 {[%clk 0:02:38]} 12. Nc3 {[%clk 0:02:39]}  a6 {[%clk 0:02:36]} 13. cxd5 {[%clk 0:02:38]}  exd5 {[%clk 0:02:34]} 14. Bg5 {[%clk 0:02:35]}  Be7 {[%clk 0:02:25]} 15. Bxf6 {[%clk 0:02:34]}  Bxf6 {[%clk 0:02:26]} 16. Nxd5 {[%clk 0:02:33]}  Bxd4 {[%clk 0:02:21]} 17. Rxd4 {[%clk 0:02:28]}  Ke6 {[%clk 0:02:21]} 18. Nc7+ {[%clk 0:02:24]}  Kf6 {[%clk 0:02:21]} 1-0


[Site "https://www.chess.com"]

[Event "Titled Tuesday Blitz May 30 Late 2023"]
[White "Sailer, Mike"]
[Black "Przybylski, Wojciech"]
[WhiteFideId "2012901"]
[BlackFideId "1117599"]
[WhiteElo "2109"]
[BlackElo "2222"]
[Result "1/2-1/2"]
[Round "08"]
[TimeControl "180+2"]
[Date "2023.05.31"]
[WhiteClock "0:00:04"]
[BlackClock "0:00:03"]

1. d4 {[%clk 0:03:00]}  Nf6 {[%clk 0:02:56]} 2. Bg5 {[%clk 0:02:59]}  e6 {[%clk 0:02:55]} 3. Nd2 {[%clk 0:02:58]}  d5 {[%clk 0:02:55]} 4. e3 {[%clk 0:02:59]}  Be7 {[%clk 0:02:55]} 5. Bd3 {[%clk 0:02:59]}  O-O {[%clk 0:02:55]} 6. c3 {[%clk 0:02:59]}  b6 {[%clk 0:02:55]} 7. f4 {[%clk 0:03:00]}  Bb7 {[%clk 0:02:55]} 8. Ngf3 {[%clk 0:03:00]}  Nbd7 {[%clk 0:02:55]} 9. O-O {[%clk 0:03:00]}  Ne4 {[%clk 0:02:53]} 10. Bxe7 {[%clk 0:02:59]}  Qxe7 {[%clk 0:02:53]} 11. Ne5 {[%clk 0:02:58]}  Ndf6 {[%clk 0:02:41]} 12. f5 {[%clk 0:02:49]}  exf5 {[%clk 0:02:39]} 13. Rxf5 {[%clk 0:02:47]}  Ne8 {[%clk 0:02:27]} 14. Nxe4 {[%clk 0:02:39]}  dxe4 {[%clk 0:02:27]} 15. Bc4 {[%clk 0:02:40]}  Nd6 {[%clk 0:02:26]} 16. Rf4 {[%clk 0:02:34]}  Nxc4 {[%clk 0:02:18]} 17. Nxc4 {[%clk 0:02:33]}  f6 {[%clk 0:02:18]} 18. a4 {[%clk 0:02:24]}  a5 {[%clk 0:02:16]} 19. Na3 {[%clk 0:02:16]}  Kh8 {[%clk 0:02:15]} 20. Nb5 {[%clk 0:02:16]}  Bd5 {[%clk 0:02:12]} 21. b3 {[%clk 0:01:55]}  g5 {[%clk 0:02:07]} 22. Rf2 {[%clk 0:01:46]}  f5 {[%clk 0:02:02]} 23. c4 {[%clk 0:01:46]}  Bc6 {[%clk 0:01:51]} 24. d5 {[%clk 0:01:38]}  Bxb5 {[%clk 0:01:51]} 25. axb5 {[%clk 0:01:39]}  Qe5 {[%clk 0:01:46]} 26. Rc1 {[%clk 0:01:19]}  f4 {[%clk 0:01:40]} 27. Qh5 {[%clk 0:01:08]}  fxe3 {[%clk 0:01:27]} 28. Rxf8+ {[%clk 0:00:51]}  Rxf8 {[%clk 0:01:25]} 29. Qe2 {[%clk 0:00:52]}  Qd4 {[%clk 0:01:08]} 30. Re1 {[%clk 0:00:52]}  Qd3 {[%clk 0:01:07]} 31. Qxd3 {[%clk 0:00:31]}  exd3 {[%clk 0:01:06]} 32. Rxe3 {[%clk 0:00:31]}  Rf4 {[%clk 0:00:41]} 33. Rxd3 {[%clk 0:00:31]}  a4 {[%clk 0:00:41]} 34. bxa4 {[%clk 0:00:23]}  Rxc4 {[%clk 0:00:41]} 35. d6 {[%clk 0:00:23]}  cxd6 {[%clk 0:00:41]} 36. Rxd6 {[%clk 0:00:22]}  Rxa4 {[%clk 0:00:41]} 37. Rxb6 {[%clk 0:00:23]}  Ra2 {[%clk 0:00:40]} 38. h3 {[%clk 0:00:20]}  Kg7 {[%clk 0:00:38]} 39. Kh2 {[%clk 0:00:20]}  Ra3 {[%clk 0:00:38]} 40. Rc6 {[%clk 0:00:17]}  Rb3 {[%clk 0:00:38]} 41. b6 {[%clk 0:00:17]}  h5 {[%clk 0:00:37]} 42. Rc7+ {[%clk 0:00:12]}  Kg6 {[%clk 0:00:37]} 43. b7 {[%clk 0:00:13]}  h4 {[%clk 0:00:35]} 44. Kg1 {[%clk 0:00:12]}  Kf5 {[%clk 0:00:34]} 45. Kf2 {[%clk 0:00:12]}  Kf4 {[%clk 0:00:32]} 46. Rf7+ {[%clk 0:00:11]}  Ke4 {[%clk 0:00:33]} 47. Re7+ {[%clk 0:00:07]}  Kf4 {[%clk 0:00:33]} 48. Ke2 {[%clk 0:00:07]}  Rb1 {[%clk 0:00:17]} 49. Kd2 {[%clk 0:00:04]}  Kg3 {[%clk 0:00:18]} 50. Kc2 {[%clk 0:00:03]}  Rb6 {[%clk 0:00:17]} 51. Rg7 {[%clk 0:00:03]}  Kxg2 {[%clk 0:00:14]} 52. Rxg5+ {[%clk 0:00:04]}  Kxh3 {[%clk 0:00:14]} 53. Rg7 {[%clk 0:00:04]}  Kh2 {[%clk 0:00:14]} 54. Kc3 {[%clk 0:00:04]}  h3 {[%clk 0:00:15]} 55. Kc4 {[%clk 0:00:04]}  Kh1 {[%clk 0:00:13]} 56. Kc5 {[%clk 0:00:05]}  Rb1 {[%clk 0:00:13]} 57. Kc6 {[%clk 0:00:04]}  h2 {[%clk 0:00:08]} 58. Kd6 {[%clk 0:00:04]}  Rd1+ {[%clk 0:00:05]} 59. Kc6 {[%clk 0:00:04]}  Rb1 {[%clk 0:00:04]} 60. Kc7 {[%clk 0:00:04]}  Rxb7+ {[%clk 0:00:03]} 61. Kxb7 {[%clk 0:00:04]} 1/2-1/2


[Site "https://www.chess.com"]

[Event "Titled Tuesday Blitz May 30 Late 2023"]
[White "Pein, Jonathan"]
[Black "Da Silva, Alessandro Rodrigues"]
[WhiteFideId "417092"]
[BlackFideId "2107546"]
[WhiteElo "2151"]
[BlackElo "2181"]
[Result "1-0"]
[Round "08"]
[TimeControl "180+2"]
[Date "2023.05.31"]
[WhiteClock "0:00:48"]
[BlackClock "0:00:21"]

1. b3 {[%clk 0:02:59]}  e5 {[%clk 0:02:57]} 2. Bb2 {[%clk 0:03:00]}  Nc6 {[%clk 0:02:57]} 3. e3 {[%clk 0:03:01]}  f5 {[%clk 0:02:58]} 4. d4 {[%clk 0:03:00]}  e4 {[%clk 0:02:55]} 5. d5 {[%clk 0:03:00]}  Nce7 {[%clk 0:02:55]} 6. Nh3 {[%clk 0:02:59]}  Ng6 {[%clk 0:02:54]} 7. Be2 {[%clk 0:02:58]}  Nf6 {[%clk 0:02:54]} 8. c4 {[%clk 0:02:58]}  a5 {[%clk 0:02:46]} 9. Bh5 {[%clk 0:02:58]}  Bb4+ {[%clk 0:02:40]} 10. Nd2 {[%clk 0:02:58]}  Nxh5 {[%clk 0:02:38]} 11. Qxh5 {[%clk 0:02:57]}  Qe7 {[%clk 0:02:10]} 12. Ng5 {[%clk 0:02:33]}  d6 {[%clk 0:01:44]} 13. a3 {[%clk 0:02:32]}  Bxd2+ {[%clk 0:01:41]} 14. Kxd2 {[%clk 0:02:33]}  Bd7 {[%clk 0:01:42]} 15. Bc3 {[%clk 0:02:22]}  O-O-O {[%clk 0:01:37]} 16. Bxa5 {[%clk 0:02:20]}  Ne5 {[%clk 0:01:36]} 17. Bc3 {[%clk 0:01:51]}  g6 {[%clk 0:01:35]} 18. Qh6 {[%clk 0:01:45]}  Ng4 {[%clk 0:01:30]} 19. Qh4 {[%clk 0:01:45]}  Rhe8 {[%clk 0:01:25]} 20. h3 {[%clk 0:01:44]}  Nxf2 {[%clk 0:01:23]} 21. Qxf2 {[%clk 0:01:43]}  Qxg5 {[%clk 0:01:23]} 22. a4 {[%clk 0:01:39]}  Rf8 {[%clk 0:01:20]} 23. g3 {[%clk 0:01:32]}  h5 {[%clk 0:01:15]} 24. h4 {[%clk 0:01:28]}  Qe7 {[%clk 0:01:13]} 25. a5 {[%clk 0:01:29]}  Kb8 {[%clk 0:01:12]} 26. a6 {[%clk 0:01:26]}  b6 {[%clk 0:01:11]} 27. a7+ {[%clk 0:01:25]}  Ka8 {[%clk 0:01:11]} 28. Kc2 {[%clk 0:01:24]}  Bc8 {[%clk 0:01:11]} 29. b4 {[%clk 0:01:24]}  Bb7 {[%clk 0:01:11]} 30. Kb3 {[%clk 0:01:23]}  Qd7 {[%clk 0:01:03]} 31. Bd4 {[%clk 0:01:19]}  Rc8 {[%clk 0:01:00]} 32. Rhd1 {[%clk 0:01:18]}  c5 {[%clk 0:00:56]} 33. dxc6 {[%clk 0:01:18]}  Qxc6 {[%clk 0:00:56]} 34. Qe2 {[%clk 0:01:14]}  d5 {[%clk 0:00:55]} 35. c5 {[%clk 0:01:13]}  Rf7 {[%clk 0:00:47]} 36. Rdc1 {[%clk 0:01:13]}  bxc5 {[%clk 0:00:42]} 37. Rxc5 {[%clk 0:01:13]}  Qe8 {[%clk 0:00:41]} 38. Rac1 {[%clk 0:01:08]}  Rxc5 {[%clk 0:00:36]} 39. Rxc5 {[%clk 0:01:09]}  Qe6 {[%clk 0:00:31]} 40. Qc2 {[%clk 0:01:06]}  Rf8 {[%clk 0:00:31]} 41. Rc7 {[%clk 0:01:04]}  Qa6 {[%clk 0:00:28]} 42. Rc5 {[%clk 0:00:57]}  Rc8 {[%clk 0:00:19]} 43. Rxc8+ {[%clk 0:00:55]}  Bxc8 {[%clk 0:00:20]} 44. Qc7 {[%clk 0:00:50]}  Qb7 {[%clk 0:00:20]} 45. Qxb7+ {[%clk 0:00:48]}  Kxb7 {[%clk 0:00:20]} 46. b5 {[%clk 0:00:48]}  Bd7 {[%clk 0:00:20]} 47. Kb4 {[%clk 0:00:48]}  Bc8 {[%clk 0:00:18]} 48. b6 {[%clk 0:00:45]}  Bd7 {[%clk 0:00:18]} 49. Kc5 {[%clk 0:00:45]}  Bc6 {[%clk 0:00:19]} 50. Kd6 {[%clk 0:00:45]}  Bb5 {[%clk 0:00:17]} 51. Kxd5 {[%clk 0:00:45]}  Be2 {[%clk 0:00:18]} 52. Ke6 {[%clk 0:00:45]}  Bg4 {[%clk 0:00:18]} 53. Kf6 {[%clk 0:00:46]}  Ka8 {[%clk 0:00:19]} 54. Kxg6 {[%clk 0:00:46]}  Kb7 {[%clk 0:00:20]} 55. Kf6 {[%clk 0:00:47]}  Ka8 {[%clk 0:00:20]} 56. Ke5 {[%clk 0:00:47]}  Kb7 {[%clk 0:00:21]} 57. Kd6 {[%clk 0:00:48]}  Ka8 {[%clk 0:00:21]} 58. Kc7 {[%clk 0:00:48]} 1-0


[Site "https://www.chess.com"]

[Event "Titled Tuesday Blitz May 30 Late 2023"]
[White "Mendez Machado, Andre"]
[Black "Petrovic, Aleksa"]
[WhiteFideId "6603793"]
[BlackFideId "967629"]
[WhiteElo "1984"]
[BlackElo "2309"]
[Result "0-1"]
[Round "08"]
[TimeControl "180+2"]
[Date "2023.05.31"]
[WhiteClock "0:00:03"]
[BlackClock "0:00:57"]

1. e4 {[%clk 0:03:00]}  d5 {[%clk 0:02:59]} 2. exd5 {[%clk 0:03:00]}  Qxd5 {[%clk 0:03:00]} 3. Nc3 {[%clk 0:03:01]}  Qe5+ {[%clk 0:03:00]} 4. Be2 {[%clk 0:02:59]}  Bg4 {[%clk 0:03:00]} 5. d4 {[%clk 0:02:55]}  Bxe2 {[%clk 0:03:00]} 6. Ngxe2 {[%clk 0:02:53]}  Qa5 {[%clk 0:03:00]} 7. O-O {[%clk 0:02:52]}  Nf6 {[%clk 0:03:01]} 8. b4 {[%clk 0:02:43]}  Qf5 {[%clk 0:02:59]} 9. Ng3 {[%clk 0:02:40]}  Qd7 {[%clk 0:02:56]} 10. Nce4 {[%clk 0:02:22]}  Nxe4 {[%clk 0:02:51]} 11. Nxe4 {[%clk 0:02:23]}  e6 {[%clk 0:02:50]} 12. Qf3 {[%clk 0:01:50]}  c6 {[%clk 0:02:41]} 13. Bf4 {[%clk 0:01:20]}  Be7 {[%clk 0:02:27]} 14. Qg3 {[%clk 0:01:15]}  Qxd4 {[%clk 0:02:17]} 15. Nd6+ {[%clk 0:00:54]}  Bxd6 {[%clk 0:02:07]} 16. Bxd6 {[%clk 0:00:55]}  Nd7 {[%clk 0:02:07]} 17. Rad1 {[%clk 0:00:49]}  Qf6 {[%clk 0:01:59]} 18. Rfe1 {[%clk 0:00:42]}  h5 {[%clk 0:01:22]} 19. Re3 {[%clk 0:00:27]}  h4 {[%clk 0:01:20]} 20. Qh3 {[%clk 0:00:24]}  Rh5 {[%clk 0:01:17]} 21. Rde1 {[%clk 0:00:21]}  Rd5 {[%clk 0:01:06]} 22. Bg3 {[%clk 0:00:06]}  hxg3 {[%clk 0:01:04]} 23. Qh8+ {[%clk 0:00:05]}  Ke7 {[%clk 0:00:58]} 24. Qxa8 {[%clk 0:00:04]}  gxf2+ {[%clk 0:00:58]} 25. Kh1 {[%clk 0:00:03]}  f1=R+ {[%clk 0:00:57]} 0-1


[Site "https://www.chess.com"]

[Event "Titled Tuesday Blitz May 30 Late 2023"]
[White "Fuentes Godoy, Lilia Ivonne"]
[Black "Gerbelli Neto, Eduardo"]
[WhiteFideId "5104130"]
[BlackFideId "2103281"]
[WhiteElo "2096"]
[BlackElo "2178"]
[Result "1-0"]
[Round "08"]
[TimeControl "180+2"]
[Date "2023.05.31"]
[WhiteClock "0:00:12"]
[BlackClock "0:00:03"]

1. d4 {[%clk 0:03:00]}  d5 {[%clk 0:02:59]} 2. c4 {[%clk 0:03:00]}  c6 {[%clk 0:03:00]} 3. cxd5 {[%clk 0:02:59]}  cxd5 {[%clk 0:02:59]} 4. Bf4 {[%clk 0:03:00]}  Nf6 {[%clk 0:03:00]} 5. e3 {[%clk 0:02:58]}  Nc6 {[%clk 0:03:00]} 6. Nc3 {[%clk 0:02:58]}  e6 {[%clk 0:03:00]} 7. Bd3 {[%clk 0:02:56]}  Be7 {[%clk 0:03:00]} 8. Nf3 {[%clk 0:02:52]}  O-O {[%clk 0:03:00]} 9. O-O {[%clk 0:02:52]}  Bd7 {[%clk 0:03:01]} 10. a3 {[%clk 0:02:51]}  a6 {[%clk 0:02:59]} 11. b4 {[%clk 0:02:50]}  b5 {[%clk 0:02:55]} 12. Rc1 {[%clk 0:02:50]}  Rc8 {[%clk 0:02:55]} 13. Rc2 {[%clk 0:02:48]}  Nh5 {[%clk 0:02:50]} 14. Bg3 {[%clk 0:02:39]}  Nxg3 {[%clk 0:02:48]} 15. hxg3 {[%clk 0:02:39]}  f6 {[%clk 0:02:49]} 16. Qd2 {[%clk 0:02:35]}  Be8 {[%clk 0:02:08]} 17. Rfc1 {[%clk 0:02:21]}  Qd6 {[%clk 0:02:04]} 18. Ne2 {[%clk 0:02:14]}  Bh5 {[%clk 0:01:56]} 19. Nf4 {[%clk 0:02:06]}  Bxf3 {[%clk 0:01:52]} 20. gxf3 {[%clk 0:02:07]}  e5 {[%clk 0:01:44]} 21. Nxd5 {[%clk 0:01:46]}  exd4 {[%clk 0:01:20]} 22. Nxe7+ {[%clk 0:01:44]}  Nxe7 {[%clk 0:01:21]} 23. exd4 {[%clk 0:01:30]}  Rcd8 {[%clk 0:01:17]} 24. Rc7 {[%clk 0:01:14]}  Rd7 {[%clk 0:00:54]} 25. Rxd7 {[%clk 0:01:04]}  Qxd7 {[%clk 0:00:54]} 26. Kg2 {[%clk 0:00:57]}  Rd8 {[%clk 0:00:54]} 27. Re1 {[%clk 0:00:49]}  Ng6 {[%clk 0:00:50]} 28. Rd1 {[%clk 0:00:35]}  Ne7 {[%clk 0:00:42]} 29. Bc2 {[%clk 0:00:25]}  Nd5 {[%clk 0:00:41]} 30. Qd3 {[%clk 0:00:23]}  g6 {[%clk 0:00:40]} 31. Bb3 {[%clk 0:00:23]}  Kg7 {[%clk 0:00:40]} 32. Re1 {[%clk 0:00:19]}  Ne7 {[%clk 0:00:26]} 33. Qe4 {[%clk 0:00:19]}  Nf5 {[%clk 0:00:22]} 34. Be6 {[%clk 0:00:18]}  Qxd4 {[%clk 0:00:19]} 35. Bxf5 {[%clk 0:00:18]}  gxf5 {[%clk 0:00:20]} 36. Qxf5 {[%clk 0:00:19]}  Rd7 {[%clk 0:00:18]} 37. Re6 {[%clk 0:00:17]}  Rf7 {[%clk 0:00:13]} 38. Rxa6 {[%clk 0:00:17]}  Qc4 {[%clk 0:00:11]} 39. Rb6 {[%clk 0:00:13]}  Qb3 {[%clk 0:00:06]} 40. Qg4+ {[%clk 0:00:12]}  Kh6 {[%clk 0:00:04]} 41. Rxb5 {[%clk 0:00:12]}  f5 {[%clk 0:00:02]} 42. Rxf5 {[%clk 0:00:10]}  Rxf5 {[%clk 0:00:02]} 43. Qxf5 {[%clk 0:00:11]}  Qxa3 {[%clk 0:00:03]} 44. Qf6+ {[%clk 0:00:11]}  Kh5 {[%clk 0:00:03]} 45. g4# {[%clk 0:00:12]} 1-0


[Site "https://www.chess.com"]